fUSD/lending_fUSD_20241024
["ID","MTS","AMOUNT","RATE_DAILY","PERIOD"]
[340748669,1729777556768,-2000.0,0.00014,2]
[340748670,1729777556789,-200.0,0.00014,2]
[340748671,1729777556811,-200.0,0.00014,2]
[340748672,1729777556834,-200.0,0.00014,2]
[340748673,1729777556855,-4738.56897285,0.00014,2]
[340748674,1729777556876,-2000.0,0.0001414,2]
[340748675,1729777556896,-200.0,0.0001414,2]
[340748676,1729777556917,-200.0,0.0001414,2]
[340748677,1729777556938,-2179.51031624,0.000144,2]
[340748678,1729777556959,-125039.98283073,0.000145,3]
[340748679,1729777556980,-10394.19307134,0.000145,2]
[340748680,1729777557002,-595.76544838,0.000145,2]
[340748681,1729777557024,-440.75,0.00014796,2]
[340748682,1729777557044,-196.96866595,0.000149,2]
[340748683,1729777557068,-297.72578133,0.00014973,2]
[340748684,1729777557089,-500.24885129,0.00014973,2]
[340748685,1729777557110,-488.0707612,0.00014973,2]
[340748686,1729777557132,-500.0,0.00014973,2]
[340748687,1729777557153,-1738.23,0.00014973,2]
[340748688,1729777557175,-603.73,0.00014973,2]
[340748689,1729777557198,-2601.24,0.00014973,2]
[340748690,1729777557219,-327.19,0.00014973,2]
[340748691,1729777557241,-2865.14,0.00014973,2]
[340748692,1729777557262,-500.0,0.00014973,2]
[340748693,1729777557286,-24134.562269,0.0001498,2]
[340748694,1729777557306,-1617.12,0.0001498,2]
[340748695,1729777557328,-681.19,0.00014989,2]
[340748696,1729777557348,-3090.95,0.00014989,2]
[340748697,1729777557371,-20645.4993832,0.0001499,2]
[340748698,1729777557392,-258.37227798,0.00014999,2]
[340748699,1729777557413,-933075.02139546,0.00015,2]
[340748700,1729777606256,-150.0,0.00013985,2]
[340748701,1729777606277,-283.92164234,0.000149,2]
[340748702,1729777654186,-150.0,0.00013985,2]
[340748703,1729777654210,-3.70304402,0.000149,2]
[340748704,1729777654232,-1300.0,0.000149,5]
[340748705,1729777654255,-500.0,0.00014973,2]
[340748706,1729777654278,-1000.0,0.00014999,2]
[340748707,1729777654300,-300.0,0.00014999,2]
[340748708,1729777654322,-187558.09102455,0.00015,2]
[340748710,1729777755101,-500.0,0.00014973,2]
[340748711,1729777755123,-150.0,0.00014973,2]
[340748712,1729777755146,-235.1056886,0.00014989,2]
[340748725,1729777831863,-150.0,0.00014989,2]
[340748726,1729777831872,-4926.92231002,0.0001499,2]
[340748727,1729777831884,-5858.28634486,0.0001499,2]
[340748728,1729777831896,-268.07010932,0.0001499,2]
[340748729,1729777831908,-1378.29577402,0.0001499,2]
[340748730,1729777831920,-427.51880542,0.0001499,2]
[340748731,1729777831932,-19584.39766533,0.0001499,2]
[340748732,1729777831943,-111840.00002748,0.0001499,2]
[340748733,1729777831955,-63568.27874955,0.0001499,2]
[340748734,1729777831964,-30908.8918672,0.0001499,2]
[340748735,1729777831973,-128338.82938331,0.00015,2]
[340748736,1729777831995,-3155.96712328,0.00015,2]
[340748737,1729777832007,-6184.95541676,0.00015,2]
[340748738,1729777832018,-584.51443712,0.00015,2]
[340748739,1729777832030,-992.32592759,0.00015,2]
[340748740,1729777832355,-339.43500351,0.00015,2]
[340748741,1729777832367,-1789.54181961,0.00015,2]
[340748742,1729777832379,-910.0,0.00015,2]
[340748743,1729777832390,-1106.02,0.00015,2]
[340748744,1729777832410,-1382.78807392,0.00015,2]
[340748747,1729777837962,-36561.28350782,0.00015,2]
[340748748,1729777837973,-69844.62556955,0.00015,2]
[340748749,1729777837985,-20847.48842772,0.00015,2]
[340748750,1729777837997,-18957.34425189,0.00015,2]
[340748751,1729777838008,-928.38746323,0.00015,2]
[340748755,1729777839144,-150.0,0.000149,2]
[340748757,1729777839931,-187.24118754,0.000149,2]
[340748758,1729777839941,-512.53361363,0.00015,2]
[340748759,1729777840028,-441579.62029994,0.00015,2]
[340748760,1729777840037,-2000.0,0.00015,2]
[340748761,1729777840048,-200.0,0.00015,2]
[340748762,1729777840058,-2000.0,0.0001515,2]
[340748763,1729777840068,-200.0,0.0001515,2]
[340748764,1729777840077,-7167.3024064,0.00015265,2]
[340748765,1729777840087,-12363.5567469,0.00015265,2]
[340748766,1729777840097,-59078.15078102,0.00015275,2]
[340748767,1729777840108,-161.19,0.00015342,2]
[340748768,1729777840117,-155.75,0.00015342,2]
[340748769,1729777840128,-163.27,0.00015342,2]
[340748770,1729777840139,-158.8,0.00015342,2]
[340748771,1729777840149,-6181.77837344,0.0001539,2]
[340748772,1729777840158,-15828.06387529,0.000154,2]
[340748773,1729777840168,-162.9,0.00015711,2]
[340748774,1729777840177,-299.99,0.00015711,2]
[340748775,1729777840186,-250.0,0.00015827,2]
[340748776,1729777840196,-800.0,0.00015827,2]
[340748777,1729777840205,-1116.19,0.00015827,2]
[340748778,1729777840215,-162.9,0.00016758,2]
[340748779,1729777840224,-295.24,0.00016909,2]
[340748780,1729777840234,-440.75,0.0001706,2]
[340748781,1729777840247,-500.0,0.0001767,3]
[340748783,1729777840257,-500.0,0.00017674,2]
[340748785,1729777840267,-250.0,0.00017796,2]
[340748786,1729777840276,-800.0,0.00017805,2]
[340748787,1729777840286,-162.9,0.00017805,2]
[340748788,1729777840296,-4062.91,0.00017903,2]
[340748789,1729777840307,-197.47,0.00018044,2]
[340748790,1729777840317,-162.9,0.00018853,2]
[340748791,1729777840330,-2592.89,0.00019183,2]
[340748792,1729777840339,-3090.88918672,0.00019323,3]
[340748793,1729777840348,-440.75,0.00019324,2]
[340748794,1729777840357,-175.2,0.00019333,2]
[340748795,1729777840367,-800.0,0.00019784,2]
[340748796,1729777840376,-3090.88918672,0.0001999,3]
[340748797,1729777840385,-237.08848707,0.0002,5]
[340748798,1729777840395,-321.37018456,0.0002,2]
[340748799,1729777840404,-15846.99062607,0.0002,2]
[340748800,1729777840413,-200.0,0.00020395,2]
[340748801,1729777840423,-318.0,0.000212,2]
[340748802,1729777840432,-440.75,0.00021587,2]
[340748803,1729777840441,-800.0,0.00021762,2]
[340748804,1729777840450,-836.0306014,0.00022,5]
[340748805,1729777840459,-449.0,0.000221,2]
[340748806,1729777840468,-200.0,0.00022944,2]
[340748807,1729777840477,-800.0,0.0002374,2]
[340748808,1729777840487,-440.75,0.00023851,2]
[340748809,1729777840496,-1112.04318586,0.00025,2]
[340748810,1729777840506,-200.0,0.00025494,2]
[340748811,1729777840516,-440.75,0.00026115,2]
[340748812,1729777840526,-155.75,0.00026401,2]
[340748813,1729777840535,-3090.88918672,0.00026723,5]
[340748814,1729777840545,-2179.5103162,0.00026733,2]
[340748815,1729777840555,-150.0,0.00027397,2]
[340748816,1729777840564,-200.0,0.00028043,2]
[340748817,1729777840574,-440.75,0.00028379,2]
[340748818,1729777840583,-175.2,0.00028999,2]
[340748819,1729777840592,-151.0,0.0003,120]
[340748820,1729777840601,-200.0,0.00030592,2]
[340748821,1729777840611,-150.0,0.00030603,2]
[340748822,1729777840620,-440.75,0.00030643,2]
[340748823,1729777840629,-250.0,0.00030854,2]
[340748824,1729777840639,-160.08,0.00031151,2]
[340748825,1729777840647,-577.45,0.00031543,2]
[340748826,1729777840657,-577.45,0.00031551,2]
[340748827,1729777840666,-577.45,0.00031559,2]
[340748828,1729777840675,-577.45,0.00031567,2]
[340748829,1729777840684,-577.45,0.00031576,2]
[340748830,1729777840693,-577.45,0.00031584,2]
[340748831,1729777840702,-577.45,0.00031592,2]
[340748832,1729777840711,-577.45,0.00031601,2]
[340748833,1729777840720,-577.45,0.00031609,2]
[340748834,1729777840729,-577.45,0.00031617,2]
[340748835,1729777840738,-577.45,0.00031626,2]
[340748836,1729777840748,-577.45,0.00031634,2]
[340748837,1729777840756,-577.45,0.00031642,2]
[340748838,1729777840766,-577.45,0.0003165,2]
[340748839,1729777840775,-577.45,0.00031659,2]
[340748840,1729777840784,-577.45,0.00031667,2]
[340748841,1729777840793,-577.45,0.00031675,2]
[340748842,1729777840803,-577.45,0.00031684,2]
[340748843,1729777840816,-577.45,0.00031692,2]
[340748844,1729777840825,-577.45,0.000317,2]
[340748845,1729777840835,-150.0,0.00031963,2]
[340748846,1729777840844,-6087.17,0.00032304,2]
[340748847,1729777840853,-164.57,0.00032568,120]
[340748848,1729777840863,-2179.5103162,0.000329,15]
[340748849,1729777840872,-440.75,0.00032907,2]
[340748850,1729777840881,-167.02,0.00033083,2]
[340748851,1729777840891,-539.213,0.00035005,40]
[340748852,1729777840900,-440.75,0.00035171,2]
[340748853,1729777840910,-150.0,0.0003653,2]
[340748854,1729777840920,-164.57,0.00036639,120]
[340748855,1729777840929,-440.75,0.00037435,2]
[340748856,1729777840939,-155.75,0.0003746,2]
[340748857,1729777840948,-2179.5103162,0.00039067,15]
[340748858,1729777840957,-440.75,0.00039699,2]
[340748859,1729777840966,-164.57,0.0004071,120]
[340748860,1729777840976,-150.0,0.00041096,2]
[340748861,1729777840985,-440.75,0.00041963,2]
[340748862,1729777840995,-440.75,0.00044226,2]
[340748863,1729777841005,-164.57,0.00044781,120]
[340748864,1729777841014,-3090.88918672,0.00045223,9]
[340748865,1729777841024,-2179.5103162,0.00045233,15]
[340748866,1729777841033,-161.19,0.00045753,2]
[340748867,1729777841042,-8806.0,0.000459,5]
[340748868,1729777841052,-440.75,0.0004649,2]
[340748869,1729777841066,-155.75,0.00048518,2]
[340748870,1729777841076,-440.75,0.00048754,2]
[340748871,1729777841085,-164.57,0.00048852,120]
[340748872,1729777841095,-3090.88918672,0.0004999,10]
[340748873,1729777841104,-3821.07,0.0005,120]
[340748874,1729777841113,-440.75,0.00051018,2]
[340748875,1729777841123,-2179.5103162,0.000514,15]
[340748876,1729777841132,-440.75,0.00053282,2]
[340748877,1729777841142,-539.213,0.00053754,100]
[340748878,1729777841152,-440.75,0.00055546,2]
[340748879,1729777841162,-163.27,0.0005589,2]
[340748880,1729777841171,-747.035,0.00057534,120]
[340748881,1729777841180,-2179.5103162,0.00057567,15]
[340748882,1729777841190,-1494.07,0.00057808,120]
[340748883,1729777841199,-440.75,0.0005781,2]
[340748884,1729777841210,-2241.105,0.00058082,120]
[340748885,1729777841220,-3090.88918672,0.00058346,12]
[340748886,1729777841229,-2988.14,0.00058356,120]
[340748887,1729777841240,-3735.175,0.0005863,120]
[340748888,1729777841249,-1724.90602341,0.000588,90]
[340748889,1729777841259,-4482.21,0.00058904,120]
[340748890,1729777841268,-3090.88918672,0.00059168,12]
[340748891,1729777841278,-5229.245,0.00059178,120]
[340748892,1729777841287,-5976.28,0.00059452,120]
[340748893,1729777841296,-155.75,0.00059577,120]
[340748894,1729777841307,-3090.88918672,0.00059716,12]
[340748895,1729777841316,-6723.315,0.00059726,120]
[340748896,1729777841326,-2600.0,0.000599,21]
[340748897,1729777841336,-9272.66756016,0.0005999,12]
[340748898,1729777841346,-150.0,0.0005999,120]
[340748899,1729777841355,-7470.35,0.00059999,120]
[340748900,1729777841365,-7798.19,0.0006,120]
[340748901,1729777841374,-28099.78284332,0.0006,2]
[340748902,1729777841385,-157.91571405,0.0006,30]
[340748903,1729777841394,-299.99011051,0.0006,120]
[340748904,1729777841404,-1006.30577574,0.0006,120]
[340748905,1729777841414,-160.34,0.0006,120]
[340748906,1729777841424,-3090.88918672,0.00060148,12]
[340748907,1729777841433,-932.029,0.00060157,120]
[340748908,1729777841442,-1152.0,0.00060257,120]
[340748909,1729777841452,-150.0,0.00060257,120]
[340748910,1729777841461,-13549.0,0.00060257,120]
[340748911,1729777841470,-3090.88918672,0.00060263,12]
[340748912,1729777841479,-8217.385,0.00060273,120]
[340748913,1729777841489,-8964.42,0.00060547,120]
[340748914,1729777841498,-7500.0,0.00060721,120]
[340748915,1729777841507,-3090.88918672,0.00060811,12]
[340748916,1729777841517,-9711.455,0.00060821,120]
[340748917,1729777841526,-3735.36475895,0.00061095,120]
[340748918,1729777841535,-12363.5567469,0.0006149,12]
[340748919,1729777841545,-51359.2469041,0.000615,60]
[340748920,1729777841556,-33764.11500001,0.000625,120]
[340748921,1729777841565,-2244.0,0.000627,14]
[340748922,1729777841574,-3090.88918672,0.0006299,13]
[340748923,1729777841583,-4221.0,0.00063,120]
[340748924,1729777841592,-150.0,0.00063,120]
[340748925,1729777841601,-150.0,0.00063,120]
[340748926,1729777841610,-150.0,0.00063,120]
[340748927,1729777841628,-152.08419042,0.00063,120]
[340748928,1729777841639,-153.57363667,0.00063,120]
[340748929,1729777841648,-152.68619526,0.00063,120]
[340748930,1729777841657,-150.0,0.00063257,120]
[340748931,1729777841667,-33814.02500001,0.000635,120]
[340748932,1729777841677,-2179.5103162,0.00063733,15]
[340748933,1729777841686,-1578.98,0.000638,90]
[340748934,1729777841695,-289.363,0.0006409,60]
[340748935,1729777841705,-150.0,0.000644,120]
[340748936,1729777841714,-1000.87043349,0.000647,120]
[340748937,1729777841724,-150.0,0.0006475,120]
[340748938,1729777841734,-3090.88918672,0.0006479,13]
[340748939,1729777841743,-1795.23216469,0.000648,110]
[340748940,1729777841753,-6045.25146085,0.000648,110]
[340748941,1729777841762,-4000.0,0.000648,23]
[340748942,1729777841772,-2093.99017574,0.0006488,7]
[340748943,1729777841782,-1000.0,0.0006489,2]
[340748944,1729777841791,-191.55101432,0.000649,120]
[340748945,1729777841801,-5300.0,0.000649,23]
[340748946,1729777841814,-9272.66756016,0.0006499,13]
[340748947,1729777841823,-28934.19088284,0.00065,60]
[340748948,1729777841833,-10000.0,0.00065,120]
[340748949,1729777841842,-5144.0,0.00065,120]
[340748950,1729777841851,-4003.75865853,0.00065105,2]
[340748951,1729777841860,-180.64071857,0.00065105,2]
[340748952,1729777841870,-9521.47195889,0.00065105,2]
[340748953,1729777841879,-458.45230437,0.00065105,2]
[340748954,1729777841888,-428.73802669,0.00065106,120]
[340748955,1729777841898,-500.0,0.00065106,120]
[340748956,1729777841908,-15454.4459336,0.00065195,13]
[340748957,1729777841917,-500.0,0.00065205,120]
[340748958,1729777841926,-500.0,0.00065205,120]
[340748959,1729777841935,-500.0,0.00065205,120]
[340748960,1729777841945,-500.0,0.00065205,120]
[340748961,1729777841955,-500.0,0.00065205,120]
[340748962,1729777841964,-500.0,0.00065205,120]
[340748963,1729777841974,-500.0,0.00065205,120]
[340748964,1729777841983,-500.0,0.00065205,120]
[340748965,1729777841992,-500.0,0.00065205,120]
[340748966,1729777842001,-500.0,0.00065205,120]
[340748967,1729777842011,-500.0,0.00065205,120]
[340748968,1729777842020,-500.0,0.00065205,120]
[340748969,1729777842030,-500.0,0.00065205,120]
[340748970,1729777842039,-500.0,0.00065205,120]
[340748971,1729777842048,-500.0,0.00065205,120]
[340748972,1729777842060,-500.0,0.00065205,120]
[340748973,1729777842070,-500.0,0.00065205,120]
[340748974,1729777842079,-500.0,0.00065205,120]
[340748975,1729777842088,-500.0,0.00065205,120]
[340748976,1729777842098,-500.0,0.00065205,120]
[340748977,1729777842107,-746.61,0.00065205,120]
[340748978,1729777842116,-746.61,0.00065205,120]
[340748979,1729777842126,-746.61,0.00065205,120]
[340748980,1729777842135,-746.61,0.00065205,120]
[340748981,1729777842145,-746.61,0.00065205,120]
[340748982,1729777842154,-746.61,0.00065205,120]
[340748983,1729777842163,-746.61,0.00065205,120]
[340748984,1729777842173,-746.61,0.00065205,120]
[340748985,1729777842182,-746.61,0.00065205,120]
[340748986,1729777842191,-746.61,0.00065205,120]
[340748987,1729777842201,-746.61,0.00065205,120]
[340748988,1729777842212,-746.61,0.00065205,120]
[340748989,1729777842222,-746.61,0.00065205,120]
[340748990,1729777842232,-746.61,0.00065205,120]
[340748991,1729777842242,-746.61,0.00065205,120]
[340748992,1729777842252,-746.61,0.00065205,120]
[340748993,1729777842262,-746.61,0.00065205,120]
[340748994,1729777842273,-746.61,0.00065205,120]
[340748995,1729777842283,-746.61,0.00065205,120]
[340748996,1729777842294,-746.61,0.00065205,120]
[340748997,1729777842305,-746.61,0.00065205,120]
[340748998,1729777842314,-746.61,0.00065205,120]
[340748999,1729777842324,-746.61,0.00065205,120]
[340749000,1729777842334,-746.64552663,0.00065205,120]
[340749001,1729777842343,-155.56838349,0.00065205,120]
[340749002,1729777842353,-500.0,0.00065205,120]
[340749003,1729777842362,-500.0,0.00065205,120]
[340749004,1729777842371,-262.80801618,0.00065205,120]
[340749005,1729777842380,-500.0,0.00065205,120]
[340749006,1729777842390,-500.0,0.00065205,120]
[340749007,1729777842401,-533.62,0.00065205,120]
[340749008,1729777842412,-500.0,0.00065205,120]
[340749009,1729777842423,-500.0,0.00065205,120]
[340749010,1729777842435,-500.0,0.00065205,120]
[340749011,1729777842446,-500.0,0.00065205,120]
[340749012,1729777842456,-500.0,0.00065205,120]
[340749013,1729777842467,-500.0,0.00065205,120]
[340749014,1729777842478,-500.0,0.00065205,120]
[340749015,1729777842489,-500.0,0.00065205,120]
[340749016,1729777842499,-241.93,0.00065205,120]
[340749017,1729777842510,-631.23497735,0.00065205,120]
[340749018,1729777842519,-500.0,0.00065205,120]
[340749019,1729777842528,-500.0,0.00065205,120]
[340749020,1729777842538,-500.0,0.00065205,120]
[340749021,1729777842547,-500.0,0.00065205,120]
[340749022,1729777842558,-500.0,0.00065205,120]
[340749023,1729777842567,-500.0,0.00065205,120]
[340749024,1729777842576,-500.0,0.00065205,120]
[340749025,1729777842586,-500.0,0.00065205,120]
[340749026,1729777842595,-500.0,0.00065205,120]
[340749027,1729777842604,-389.70333706,0.00065205,120]
[340749028,1729777842614,-866.45,0.00065205,120]
[340749029,1729777842623,-866.45,0.00065205,120]
[340749031,1729777842749,-866.45,0.00065205,120]
[340749032,1729777842759,-866.45,0.00065205,120]
[340749033,1729777842769,-866.45,0.00065205,120]
[340749035,1729777842778,-866.45,0.00065205,120]
[340749037,1729777842787,-866.45,0.00065205,120]
[340749038,1729777842796,-866.45,0.00065205,120]
[340749039,1729777842808,-866.45,0.00065205,120]
[340749040,1729777842818,-866.45,0.00065205,120]
[340749041,1729777842827,-866.45,0.00065205,120]
[340749042,1729777842836,-866.45,0.00065205,120]
[340749043,1729777842845,-866.45,0.00065205,120]
[340749044,1729777842854,-866.45,0.00065205,120]
[340749045,1729777842863,-866.45,0.00065205,120]
[340749046,1729777842872,-866.45,0.00065205,120]
[340749047,1729777842882,-866.45,0.00065205,120]
[340749048,1729777842891,-866.45,0.00065205,120]
[340749049,1729777842900,-866.45,0.00065205,120]
[340749050,1729777842909,-866.45,0.00065205,120]
[340749051,1729777842919,-866.45,0.00065205,120]
[340749052,1729777842928,-866.45,0.00065205,120]
[340749053,1729777842938,-866.45,0.00065205,120]
[340749054,1729777842949,-866.51581919,0.00065205,120]
[340749055,1729777842959,-500.0,0.00065205,120]
[340749056,1729777842968,-500.0,0.00065205,120]
[340749057,1729777842979,-500.0,0.00065205,120]
[340749058,1729777842988,-500.0,0.00065205,120]
[340749059,1729777842998,-500.0,0.00065205,120]
[340749060,1729777843008,-500.0,0.00065205,120]
[340749061,1729777843017,-500.0,0.00065205,120]
[340749062,1729777843026,-500.0,0.00065205,120]
[340749063,1729777843036,-500.0,0.00065205,120]
[340749064,1729777843045,-500.0,0.00065205,120]
[340749065,1729777843057,-238.21389106,0.00065205,120]
[340749066,1729777843067,-500.0,0.00065205,120]
[340749067,1729777843076,-500.0,0.00065205,120]
[340749068,1729777843086,-500.0,0.00065205,120]
[340749069,1729777843096,-646.8,0.00065205,120]
[340749070,1729777843106,-500.0,0.00065205,120]
[340749071,1729777843116,-500.0,0.00065205,120]
[340749072,1729777843125,-500.0,0.00065205,120]
[340749073,1729777843135,-500.0,0.00065205,120]
[340749074,1729777843144,-368.36810663,0.00065205,120]
[340749075,1729777843155,-1535.6,0.00065205,120]
[340749076,1729777843164,-1535.6,0.00065205,120]
[340749077,1729777843174,-1535.6,0.00065205,120]
[340749078,1729777843183,-1535.6,0.00065205,120]
[340749079,1729777843194,-1535.6,0.00065205,120]
[340749080,1729777843203,-1535.6,0.00065205,120]
[340749081,1729777843214,-1535.6,0.00065205,120]
[340749082,1729777843223,-1535.6,0.00065205,120]
[340749083,1729777843234,-1535.6,0.00065205,120]
[340749084,1729777843248,-1535.6,0.00065205,120]
[340749085,1729777843258,-1535.6,0.00065205,120]
[340749086,1729777843267,-1535.6,0.00065205,120]
[340749087,1729777843277,-1535.6,0.00065205,120]
[340749088,1729777843287,-1535.6,0.00065205,120]
[340749089,1729777843297,-1535.6,0.00065205,120]
[340749090,1729777843308,-1535.6,0.00065205,120]
[340749091,1729777843317,-1535.6,0.00065205,120]
[340749092,1729777843327,-1535.6,0.00065205,120]
[340749093,1729777843337,-1535.6,0.00065205,120]
[340749094,1729777843346,-1535.6,0.00065205,120]
[340749095,1729777843356,-1535.6,0.00065205,120]
[340749096,1729777843366,-1535.6,0.00065205,120]
[340749097,1729777843376,-1535.6,0.00065205,120]
[340749098,1729777843386,-1535.63311801,0.00065205,120]
[340749099,1729777843396,-500.0,0.00065205,120]
[340749100,1729777843407,-500.0,0.00065205,120]
[340749101,1729777843419,-500.0,0.00065205,120]
[340749102,1729777843429,-500.0,0.00065205,120]
[340749103,1729777843438,-500.0,0.00065205,120]
[340749104,1729777843448,-500.0,0.00065205,120]
[340749105,1729777843457,-500.0,0.00065205,120]
[340749106,1729777843467,-500.0,0.00065205,120]
[340749107,1729777843476,-500.0,0.00065205,120]
[340749108,1729777843487,-268.87134175,0.00065205,120]
[340749109,1729777843497,-500.0,0.00065205,120]
[340749110,1729777843506,-500.0,0.00065205,120]
[340749111,1729777843517,-500.0,0.00065205,120]
[340749112,1729777843526,-500.0,0.00065205,120]
[340749113,1729777843536,-500.0,0.00065205,120]
[340749114,1729777843546,-500.0,0.00065205,120]
[340749115,1729777843556,-500.0,0.00065205,120]
[340749116,1729777843566,-500.0,0.00065205,120]
[340749117,1729777843576,-500.0,0.00065205,120]
[340749118,1729777843586,-500.0,0.00065205,120]
[340749119,1729777843595,-301.20466442,0.00065205,120]
[340749120,1729777843605,-500.0,0.00065205,120]
[340749121,1729777843617,-500.0,0.00065205,120]
[340749122,1729777843626,-500.0,0.00065205,120]
[340749123,1729777843636,-500.0,0.00065205,120]
[340749124,1729777843646,-500.0,0.00065205,120]
[340749125,1729777843656,-500.0,0.00065205,120]
[340749126,1729777843666,-500.0,0.00065205,120]
[340749127,1729777843675,-500.0,0.00065205,120]
[340749128,1729777843684,-500.0,0.00065205,120]
[340749129,1729777843694,-500.0,0.00065205,120]
[340749130,1729777843703,-279.2256899,0.00065205,120]
[340749131,1729777843713,-500.0,0.00065205,120]
[340749132,1729777843722,-500.0,0.00065205,120]
[340749133,1729777843731,-500.0,0.00065205,120]
[340749134,1729777843740,-500.0,0.00065205,120]
[340749135,1729777843748,-500.0,0.00065205,120]
[340749136,1729777843758,-500.0,0.00065205,120]
[340749137,1729777843767,-500.0,0.00065205,120]
[340749138,1729777843776,-500.0,0.00065205,120]
[340749139,1729777843785,-226.88,0.00065205,120]
[340749140,1729777843795,-500.0,0.00065205,120]
[340749141,1729777843805,-500.0,0.00065205,120]
[340749142,1729777843814,-500.0,0.00065205,120]
[340749143,1729777843823,-605.20427915,0.00065205,120]
[340749144,1729777843832,-536.99,0.00065205,120]
[340749145,1729777843841,-500.0,0.00065205,120]
[340749146,1729777843850,-500.0,0.00065205,120]
[340749147,1729777843860,-500.0,0.00065205,120]
[340749148,1729777843869,-500.0,0.00065205,120]
[340749149,1729777843879,-500.0,0.00065205,120]
[340749150,1729777843888,-287.86316739,0.00065205,120]
[340749151,1729777843897,-500.0,0.00065205,120]
[340749152,1729777843907,-500.0,0.00065205,120]
[340749153,1729777843917,-500.0,0.00065205,120]
[340749154,1729777843928,-500.0,0.00065205,120]
[340749155,1729777843938,-353.55,0.00065205,120]
[340749156,1729777843949,-500.0,0.00065205,120]
[340749157,1729777843958,-500.0,0.00065205,120]
[340749158,1729777843968,-500.0,0.00065205,120]
[340749159,1729777843977,-500.0,0.00065205,120]
[340749160,1729777843987,-500.0,0.00065205,120]
[340749161,1729777843997,-500.0,0.00065205,120]
[340749162,1729777844006,-500.0,0.00065205,120]
[340749163,1729777844016,-500.0,0.00065205,120]
[340749164,1729777844028,-500.0,0.00065205,120]
[340749165,1729777844037,-500.0,0.00065205,120]
[340749166,1729777844046,-500.0,0.00065205,120]
[340749167,1729777844057,-500.0,0.00065205,120]
[340749168,1729777844067,-500.0,0.00065205,120]
[340749169,1729777844076,-500.0,0.00065205,120]
[340749170,1729777844085,-500.0,0.00065205,120]
[340749171,1729777844094,-500.0,0.00065205,120]
[340749172,1729777844105,-500.0,0.00065205,120]
[340749173,1729777844115,-500.0,0.00065205,120]
[340749174,1729777844124,-500.0,0.00065205,120]
[340749175,1729777844134,-500.0,0.00065205,120]
[340749176,1729777844144,-500.0,0.00065205,120]
[340749177,1729777844153,-500.0,0.00065205,120]
[340749178,1729777844163,-500.0,0.00065205,120]
[340749179,1729777844174,-500.0,0.00065205,120]
[340749180,1729777844183,-500.0,0.00065205,120]
[340749181,1729777844193,-500.0,0.00065205,120]
[340749182,1729777844203,-436.48398989,0.00065205,120]
[340749183,1729777844212,-500.0,0.00065205,120]
[340749184,1729777844221,-500.0,0.00065205,120]
[340749185,1729777844231,-500.0,0.00065205,120]
[340749186,1729777844241,-500.0,0.00065205,120]
[340749187,1729777844251,-500.0,0.00065205,120]
[340749188,1729777844261,-500.0,0.00065205,120]
[340749189,1729777844271,-500.0,0.00065205,120]
[340749190,1729777844281,-229.77709213,0.00065205,120]
[340749191,1729777844290,-2793.69,0.00065205,120]
[340749192,1729777844301,-2793.69,0.00065205,120]